fUST/lending_fUST_20250411
["ID","MTS","AMOUNT","RATE_DAILY","PERIOD"]
[357675554,1744308642033,-500.0,0.00016438,2]
[357675556,1744308642042,-528.26,0.00016438,2]
[357675558,1744308642052,-500.0,0.00016438,2]
[357675560,1744308642063,-500.0,0.00016438,2]
[357675562,1744308642073,-500.0,0.00016438,2]
[357675564,1744308642083,-500.0,0.00016438,2]
[357675566,1744308642093,-562.49,0.00016438,2]
[357675568,1744308642102,-500.0,0.00016438,2]
[357675570,1744308642112,-667.3,0.00016438,2]
[357675572,1744308642124,-500.0,0.00016438,2]
[357675574,1744308642135,-624.37,0.00016438,2]
[357675576,1744308642144,-500.0,0.00016438,2]
[357675578,1744308642154,-500.0,0.00016438,2]
[357675580,1744308642164,-500.0,0.00016438,2]
[357675582,1744308642173,-500.0,0.00016438,2]
[357675584,1744308642183,-500.0,0.00016438,2]
[357675586,1744308642193,-777.43,0.00016438,2]
[357675588,1744308642203,-287.54103743,0.00016438,2]
[357675590,1744308642216,-3480.53,0.00016438,2]
[357675592,1744308642226,-500.0,0.00016438,2]
[357675594,1744308642237,-500.0,0.00016438,2]
[357675597,1744308642247,-1177.22,0.00016438,2]
[357675599,1744308642256,-500.0,0.00016438,2]
[357675601,1744308642266,-3131.24,0.00016438,2]
[357675603,1744308642276,-500.0,0.00016438,2]
[357675605,1744308642286,-500.0,0.00016438,2]
[357675608,1744308642296,-337.33121117,0.00016438,2]
[357675610,1744308642306,-500.0,0.00016438,2]
[357675612,1744308642316,-800.53,0.00016438,2]
[357675614,1744308642325,-500.0,0.00016438,2]
[357675616,1744308642335,-514.76,0.00016438,2]
[357675618,1744308642345,-500.0,0.00016438,2]
[357675620,1744308642355,-500.0,0.00016438,2]
[357675622,1744308642364,-3474.89,0.00016438,2]
[357675624,1744308642373,-1414.1,0.00016438,2]
[357675626,1744308642383,-500.0,0.00016438,2]
[357675628,1744308642392,-500.0,0.00016438,2]
[357675630,1744308642402,-500.0,0.00016438,2]
[357675633,1744308642411,-500.0,0.00016438,2]
[357675635,1744308642421,-585.19,0.00016438,2]
[357675637,1744308642431,-500.0,0.00016438,2]
[357675639,1744308642440,-500.0,0.00016438,2]
[357675641,1744308642450,-370.18505689,0.00016438,2]
[357675644,1744308642461,-6486.84,0.00016438,2]
[357675646,1744308642472,-1008.02,0.00016438,2]
[357675648,1744308642482,-743.63,0.00016438,2]
[357675650,1744308642492,-642.81,0.00016438,2]
[357675652,1744308642502,-775.89,0.00016438,2]
[357675654,1744308642512,-887.63,0.00016438,2]
[357675658,1744308642522,-284.51965802,0.00016438,2]
[357675661,1744308642531,-500.0,0.00016438,2]
[357675664,1744308642541,-500.0,0.00016438,2]
[357675667,1744308642551,-500.0,0.00016438,2]
[357675670,1744308642561,-500.0,0.00016438,2]
[357675672,1744308642572,-500.0,0.00016438,2]
[357675674,1744308642582,-1298.71,0.00016438,2]
[357675677,1744308642593,-500.0,0.00016438,2]
[357675679,1744308642603,-500.0,0.00016438,2]
[357675681,1744308642612,-806.3,0.00016438,2]
[357675683,1744308642622,-501.38528797,0.00016438,2]
[357675686,1744308642632,-500.0,0.00016438,2]
[357675688,1744308642643,-500.0,0.00016438,2]
[357675690,1744308642653,-500.0,0.00016438,2]
[357675691,1744308642664,-1217.57,0.00016438,2]
[357675692,1744308642673,-500.0,0.00016438,2]
[357675694,1744308642683,-500.0,0.00016438,2]
[357675696,1744308642693,-500.0,0.00016438,2]
[357675697,1744308642703,-500.0,0.00016438,2]
[357675698,1744308642712,-612.07459731,0.00016438,2]
[357675699,1744308642723,-500.0,0.00016438,2]
[357675700,1744308642734,-500.0,0.00016438,2]
[357675701,1744308642744,-500.0,0.00016438,2]
[357675702,1744308642754,-1000.0,0.00016438,2]
[357675703,1744308642764,-500.0,0.00016438,2]
[357675704,1744308642774,-1000.0,0.00016438,2]
[357675705,1744308642784,-500.0,0.00016438,2]
[357675706,1744308642794,-500.0,0.00016438,2]
[357675707,1744308642804,-500.0,0.00016438,2]
[357675708,1744308642814,-500.0,0.00016438,2]
[357675709,1744308642825,-387.08221043,0.00016438,2]
[357675710,1744308642834,-500.0,0.00016438,2]
[357675711,1744308642844,-500.0,0.00016438,2]
[357675712,1744308642853,-500.0,0.00016438,2]
[357675713,1744308642864,-500.0,0.00016438,2]
[357675714,1744308642874,-500.0,0.00016438,2]
[357675715,1744308642884,-500.0,0.00016438,2]
[357675716,1744308642893,-500.0,0.00016438,2]
[357675717,1744308642905,-500.0,0.00016438,2]
[357675718,1744308642916,-500.0,0.00016438,2]
[357675719,1744308642926,-500.0,0.00016438,2]
[357675720,1744308642936,-500.0,0.00016438,2]
[357675721,1744308642946,-732.44,0.00016438,2]
[357675722,1744308642956,-2354.72,0.00016438,2]
[357675723,1744308642967,-502.31,0.00016438,2]
[357675724,1744308642978,-616.04,0.00016438,2]
[357675725,1744308642988,-500.0,0.00016438,2]
[357675726,1744308643000,-500.0,0.00016438,2]
[357675727,1744308643010,-500.0,0.00016438,2]
[357675729,1744308643020,-609.5,0.00016438,2]
[357675731,1744308643031,-500.0,0.00016438,2]
[357675733,1744308643040,-500.0,0.00016438,2]
[357675735,1744308643051,-500.0,0.00016438,2]
[357675736,1744308643060,-573.32,0.00016438,2]
[357675739,1744308643071,-2690.58,0.00016438,2]
[357675741,1744308643080,-500.0,0.00016438,2]
[357675743,1744308643090,-500.0,0.00016438,2]
[357675745,1744308643100,-500.0,0.00016438,2]
[357675747,1744308643111,-500.0,0.00016438,2]
[357675749,1744308643121,-500.0,0.00016438,2]
[357675751,1744308643131,-500.0,0.00016438,2]
[357675753,1744308643141,-500.0,0.00016438,2]
[357675755,1744308643151,-500.0,0.00016438,2]
[357675757,1744308643162,-500.0,0.00016438,2]
[357675759,1744308643172,-500.0,0.00016438,2]
[357675761,1744308643183,-1152.17,0.00016438,2]
[357675763,1744308643193,-500.0,0.00016438,2]
[357675765,1744308643203,-500.0,0.00016438,2]
[357675767,1744308643212,-500.0,0.00016438,2]
[357675769,1744308643224,-500.0,0.00016438,2]
[357675771,1744308643234,-500.0,0.00016438,2]
[357675773,1744308643243,-500.0,0.00016438,2]
[357675775,1744308643253,-500.0,0.00016438,2]
[357675777,1744308643264,-500.0,0.00016438,2]
[357675779,1744308643274,-825.61,0.00016438,2]
[357675781,1744308643284,-1102.5,0.00016438,2]
[357675798,1744308643428,-500.0,0.00016438,2]
[357675800,1744308643439,-500.0,0.00016438,2]
[357675802,1744308643449,-500.0,0.00016438,2]
[357675804,1744308643459,-692.23,0.00016438,2]
[357675806,1744308643471,-500.0,0.00016438,2]
[357675808,1744308643481,-500.0,0.00016438,2]
[357675810,1744308643491,-500.0,0.00016438,2]
[357675812,1744308643500,-500.0,0.00016438,2]
[357675814,1744308643510,-500.0,0.00016438,2]
[357675816,1744308643519,-500.0,0.00016438,2]
[357675818,1744308643529,-500.0,0.00016438,2]
[357675820,1744308643539,-500.0,0.00016438,2]
[357675823,1744308643548,-500.0,0.00016438,2]
[357675824,1744308643558,-213.57067551,0.00016438,2]
[357675827,1744308643568,-500.0,0.00016438,2]
[357675829,1744308643579,-500.0,0.00016438,2]
[357675831,1744308643589,-1297.45,0.00016438,2]
[357675833,1744308643598,-500.0,0.00016438,2]
[357675835,1744308643608,-500.0,0.00016438,2]
[357675837,1744308643617,-500.0,0.00016438,2]
[357675839,1744308643627,-500.0,0.00016438,2]
[357675841,1744308643638,-509.32960487,0.00016438,2]
[357675843,1744308643647,-1276.09,0.00016438,2]
[357675844,1744308643657,-500.0,0.00016438,2]
[357675845,1744308643666,-500.0,0.00016438,2]
[357675846,1744308643676,-500.0,0.00016438,2]
[357675847,1744308643686,-500.0,0.00016438,2]
[357675848,1744308643696,-639.49,0.00016438,2]
[357675849,1744308643705,-500.0,0.00016438,2]
[357675850,1744308643715,-500.0,0.00016438,2]
[357675851,1744308643725,-500.0,0.00016438,2]
[357675852,1744308643735,-546.63,0.00016438,2]
[357675853,1744308643745,-747.46,0.00016438,2]
[357675854,1744308643755,-500.0,0.00016438,2]
[357675855,1744308643766,-500.0,0.00016438,2]
[357675856,1744308643776,-516.15819294,0.00016438,2]
[357675857,1744308643785,-1102.16,0.00016438,2]
[357675858,1744308643795,-540.03,0.00016438,2]
[357675859,1744308643804,-500.0,0.00016438,2]
[357675861,1744308643814,-1241.53,0.00016438,2]
[357675863,1744308643824,-500.0,0.00016438,2]
[357675865,1744308643833,-1719.55,0.00016438,2]
[357675867,1744308643843,-500.0,0.00016438,2]
[357675869,1744308643853,-500.0,0.00016438,2]
[357675871,1744308643862,-852.09,0.00016438,2]
[357675872,1744308643873,-918.22,0.00016438,2]
[357675873,1744308643882,-590.63069117,0.00016438,2]
[357675874,1744308643892,-2798.03,0.00016438,2]
[357675875,1744308643902,-630.8,0.00016438,2]
[357675876,1744308643912,-500.0,0.00016438,2]
[357675877,1744308643921,-500.0,0.00016438,2]
[357675878,1744308643931,-500.0,0.00016438,2]
[357675879,1744308643941,-728.04,0.00016438,2]
[357675880,1744308643951,-500.0,0.00016438,2]
[357675881,1744308643961,-3500.92,0.00016438,2]
[357675882,1744308643972,-1246.5,0.00016438,2]
[357675883,1744308643984,-500.0,0.00016438,2]
[357675884,1744308643995,-500.0,0.00016438,2]
[357675885,1744308644005,-500.0,0.00016438,2]
[357675886,1744308644014,-500.0,0.00016438,2]
[357675887,1744308644024,-533.09728778,0.00016438,2]
[357675888,1744308644034,-500.0,0.00016438,2]
[357675889,1744308644044,-500.0,0.00016438,2]
[357675890,1744308644053,-500.0,0.00016438,2]
[357675891,1744308644064,-2124.05,0.00016438,2]
[357675892,1744308644074,-887.27,0.00016438,2]
[357675893,1744308644084,-1301.77,0.00016438,2]
[357675894,1744308644094,-500.0,0.00016438,2]
[357675895,1744308644104,-500.0,0.00016438,2]
[357675896,1744308644114,-1002.55,0.00016438,2]
[357675897,1744308644124,-2038.69,0.00016438,2]
[357675898,1744308644134,-500.0,0.00016438,2]
[357675899,1744308644144,-500.0,0.00016438,2]
[357675900,1744308644154,-500.0,0.00016438,2]
[357675901,1744308644163,-657.69,0.00016438,2]
[357675902,1744308644173,-1293.5,0.00016438,2]
[357675903,1744308644183,-500.0,0.00016438,2]
[357675904,1744308644193,-3770.16,0.00016438,2]
[357675905,1744308644203,-500.0,0.00016438,2]
[357675906,1744308644213,-1011.21,0.00016438,2]
[357675907,1744308644223,-561.95,0.00016438,2]
[357675908,1744308644232,-2453.43,0.00016438,2]
[357675909,1744308644242,-561.45058041,0.00016438,2]
[357675910,1744308644252,-500.0,0.00016438,2]
[357675911,1744308644261,-500.0,0.00016438,2]
[357675912,1744308644271,-500.0,0.00016438,2]
[357675913,1744308644280,-500.0,0.00016438,2]
[357675914,1744308644290,-500.0,0.00016438,2]
[357675915,1744308644300,-3679.27,0.00016438,2]
[357675916,1744308644310,-781.8,0.00016438,2]
[357675917,1744308644319,-908.87,0.00016438,2]
[357675918,1744308644330,-500.0,0.00016438,2]
[357675919,1744308644340,-500.0,0.00016438,2]
[357675921,1744308644350,-500.0,0.00016438,2]
[357675923,1744308644360,-2526.87,0.00016438,2]
[357675925,1744308644370,-616.63,0.00016438,2]
[357675927,1744308644380,-989.54,0.00016438,2]
[357675929,1744308644390,-500.0,0.00016438,2]
[357675931,1744308644399,-500.0,0.00016438,2]
[357675933,1744308644409,-3776.81,0.00016438,2]
[357675936,1744308644419,-1442.23,0.00016438,2]
[357675937,1744308644429,-6890.94,0.00016438,2]
[357675940,1744308644439,-500.0,0.00016438,2]
[357675941,1744308644448,-500.0,0.00016438,2]
[357675944,1744308644457,-500.0,0.00016438,2]
[357675946,1744308644468,-936.33,0.00016438,2]
[357675947,1744308644478,-500.0,0.00016438,2]
[357675948,1744308644488,-989.96,0.00016438,2]
[357675950,1744308644498,-4539.48,0.00016438,2]
[357675952,1744308644508,-1235.93,0.00016438,2]
[357675954,1744308644517,-1662.2,0.00016438,2]
[357675956,1744308644527,-500.0,0.00016438,2]
[357675958,1744308644536,-696.44,0.00016438,2]
[357675960,1744308644546,-2768.86,0.00016438,2]
[357675962,1744308644556,-500.0,0.00016438,2]
[357675964,1744308644565,-500.0,0.00016438,2]
[357675966,1744308644576,-500.0,0.00016438,2]
[357675968,1744308644585,-3518.02,0.00016438,2]
[357675970,1744308644595,-500.0,0.00016438,2]
[357675972,1744308644604,-459.13902741,0.00016438,2]
[357675973,1744308644615,-500.0,0.00016438,2]
[357675974,1744308644625,-500.0,0.00016438,2]
[357675975,1744308644635,-500.0,0.00016438,2]
[357675976,1744308644645,-500.0,0.00016438,2]
[357675977,1744308644655,-500.0,0.00016438,2]
[357675978,1744308644665,-1152.51,0.00016438,2]
[357675979,1744308644675,-692.21,0.00016438,2]
[357675980,1744308644686,-1510.33,0.00016438,2]
[357675981,1744308644695,-500.0,0.00016438,2]
[357675982,1744308644705,-1067.65,0.00016438,2]
[357675983,1744308644715,-500.0,0.00016438,2]
[357675984,1744308644725,-3186.35,0.00016438,2]
[357675985,1744308644734,-500.0,0.00016438,2]
[357675986,1744308644744,-827.07,0.00016438,2]
[357675987,1744308644754,-862.12,0.00016438,2]
[357675988,1744308644763,-500.0,0.00016438,2]
[357675989,1744308644774,-500.0,0.00016438,2]
[357675990,1744308644785,-2279.3,0.00016438,2]
[357675991,1744308644795,-500.0,0.00016438,2]
[357675992,1744308644804,-500.0,0.00016438,2]
[357675993,1744308644814,-500.0,0.00016438,2]
[357675994,1744308644823,-500.0,0.00016438,2]
[357675995,1744308644833,-1677.55,0.00016438,2]
[357675996,1744308644844,-20782.81,0.00016438,2]
[357675997,1744308644854,-500.0,0.00016438,2]
[357675998,1744308644864,-500.0,0.00016438,2]
[357675999,1744308644874,-1748.84,0.00016438,2]
[357676000,1744308644883,-500.0,0.00016438,2]
[357676001,1744308644893,-500.0,0.00016438,2]
[357676002,1744308644903,-759.38,0.00016438,2]
[357676003,1744308644913,-500.0,0.00016438,2]
[357676004,1744308644923,-500.0,0.00016438,2]
[357676005,1744308644933,-3486.64,0.00016438,2]
[357676006,1744308644944,-500.0,0.00016438,2]
[357676007,1744308644953,-500.0,0.00016438,2]
[357676008,1744308644963,-500.0,0.00016438,2]
[357676009,1744308644973,-500.0,0.00016438,2]
[357676010,1744308644983,-500.0,0.00016438,2]
[357676011,1744308644998,-531.9,0.00016438,2]
[357676012,1744308645007,-500.0,0.00016438,2]
[357676013,1744308645018,-1424.48,0.00016438,2]
[357676014,1744308645027,-500.0,0.00016438,2]
[357676015,1744308645038,-500.0,0.00016438,2]
[357676016,1744308645048,-151.0,0.00016438,2]
[357676017,1744308645059,-500.0,0.00016438,2]
[357676018,1744308645070,-178.768424,0.00016438,2]
[357676019,1744308645081,-500.0,0.00016438,2]
[357676020,1744308645091,-14407.5,0.00016438,2]
[357676021,1744308645100,-500.0,0.00016438,2]
[357676022,1744308645110,-870.53,0.00016438,2]
[357676023,1744308645120,-500.0,0.00016438,2]
[357676024,1744308645130,-500.0,0.00016438,2]
[357676025,1744308645139,-500.0,0.00016438,2]
[357676026,1744308645149,-1624.65,0.00016438,2]
[357676027,1744308645158,-500.0,0.00016438,2]
[357676028,1744308645168,-8220.87,0.00016438,2]
[357676029,1744308645178,-14619.82,0.00016438,2]
[357676030,1744308645188,-4601.93,0.00016438,2]
[357676031,1744308645198,-500.0,0.00016438,2]
[357676033,1744308645207,-1395.26,0.00016438,2]
[357676034,1744308645219,-343.54585196,0.00016438,2]
[357676035,1744308645228,-594.32,0.00016438,2]
[357676036,1744308645238,-1210.36,0.00016438,2]
[357676037,1744308645248,-500.0,0.00016438,2]
[357676038,1744308645258,-2747.77,0.00016438,2]
[357676040,1744308645269,-5493.51,0.00016438,2]
[357676041,1744308645278,-500.0,0.00016438,2]
[357676042,1744308645288,-1425.0,0.00016438,2]
[357676043,1744308645298,-602.65,0.00016438,2]
[357676044,1744308645308,-500.0,0.00016438,2]
[357676045,1744308645317,-500.0,0.00016438,2]
[357676054,1744308645457,-669.74,0.00016438,2]
[357676056,1744308645469,-4302.1,0.00016438,2]
[357676058,1744308645479,-4302.1,0.00016438,2]
[357676060,1744308645489,-4302.1,0.00016438,2]
[357676063,1744308645499,-4302.1,0.00016438,2]
[357676065,1744308645508,-4302.1,0.00016438,2]
[357676067,1744308645519,-4302.1,0.00016438,2]
[357676069,1744308645529,-4302.1,0.00016438,2]
[357676071,1744308645539,-4302.1,0.00016438,2]
[357676073,1744308645549,-4302.1,0.00016438,2]
[357676075,1744308645559,-4302.1,0.00016438,2]
[357676077,1744308645569,-500.0,0.00016438,2]
[357676079,1744308645579,-4302.1,0.00016438,2]
[357676080,1744308645588,-4302.1,0.00016438,2]
[357676081,1744308645598,-4302.1,0.00016438,2]
[357676082,1744308645608,-719.55,0.00016438,2]
[357676083,1744308645618,-4302.1,0.00016438,2]
[357676084,1744308645627,-4302.1,0.00016438,2]
[357676085,1744308645637,-4302.1,0.00016438,2]
[357676086,1744308645647,-4302.1,0.00016438,2]
[357676087,1744308645656,-4302.1,0.00016438,2]
[357676088,1744308645667,-6123.87,0.00016438,2]
[357676089,1744308645676,-4302.1,0.00016438,2]
[357676090,1744308645686,-719.14,0.00016438,2]
[357676091,1744308645696,-4302.1,0.00016438,2]
[357676092,1744308645705,-4302.1,0.00016438,2]
[357676093,1744308645715,-4302.1,0.00016438,2]
[357676094,1744308645724,-277.87417647,0.00016438,2]
[357676095,1744308645734,-686.1,0.00016438,2]
[357676096,1744308645744,-500.0,0.00016438,2]
[357676097,1744308645754,-500.0,0.00016438,2]
[357676098,1744308645764,-500.0,0.00016438,2]
[357676099,1744308645774,-500.0,0.00016438,2]
[357676100,1744308645784,-482.53664572,0.00016438,2]
[357676101,1744308645794,-4302.1,0.00016438,2]
[357676102,1744308645804,-4302.187796,0.00016438,2]
[357676103,1744308645814,-853.7,0.00016438,2]
[357676104,1744308645824,-5297.59,0.00016438,2]
[357676105,1744308645833,-500.0,0.00016438,2]
[357676106,1744308645843,-511.77166699,0.00016438,2]
[357676107,1744308645854,-3104.83,0.00016438,2]
[357676108,1744308645863,-521.19699074,0.00016438,2]
[357676109,1744308645873,-500.0,0.00016438,2]
[357676110,1744308645882,-760.28,0.00016438,2]
[357676111,1744308645892,-500.0,0.00016438,2]
[357676112,1744308645902,-2492.63,0.00016438,2]
[357676113,1744308645912,-546.75621077,0.00016438,2]
[357676114,1744308645922,-500.0,0.00016438,2]
[357676115,1744308645932,-500.0,0.00016438,2]
[357676116,1744308645942,-500.0,0.00016438,2]
[357676117,1744308645951,-500.0,0.00016438,2]
[357676118,1744308645961,-500.0,0.00016438,2]
[357676119,1744308645973,-500.0,0.00016438,2]
[357676120,1744308645985,-500.0,0.00016438,2]
[357676122,1744308645995,-1272.15,0.00016438,2]
[357676123,1744308646004,-595.22,0.00016438,2]
[357676124,1744308646014,-500.0,0.00016438,2]
[357676125,1744308646024,-500.0,0.00016438,2]
[357676126,1744308646035,-500.0,0.00016438,2]
[357676127,1744308646044,-500.0,0.00016438,2]
[357676128,1744308646054,-579.23,0.00016438,2]
[357676129,1744308646067,-500.0,0.00016438,2]
[357676130,1744308646077,-500.0,0.00016438,2]
[357676131,1744308646088,-500.0,0.00016438,2]
[357676132,1744308646098,-2759.82,0.00016438,2]
[357676133,1744308646108,-500.0,0.00016438,2]
[357676134,1744308646118,-500.0,0.00016438,2]
[357676135,1744308646127,-500.0,0.00016438,2]
[357676136,1744308646137,-500.0,0.00016438,2]
[357676137,1744308646146,-500.0,0.00016438,2]
[357676138,1744308646157,-3099.26,0.00016438,2]
[357676139,1744308646167,-606.39,0.00016438,2]
[357676140,1744308646177,-501.68,0.00016438,2]
[357676141,1744308646187,-500.0,0.00016438,2]
[357676142,1744308646198,-664.2,0.00016438,2]
[357676143,1744308646208,-798.58,0.00016438,2]
[357676144,1744308646220,-500.0,0.00016438,2]
[357676145,1744308646230,-1853.17,0.00016438,2]
[357676146,1744308646239,-4063.91,0.00016438,2]
[357676147,1744308646250,-571.44,0.00016438,2]
[357676148,1744308646259,-151.0,0.00016438,2]
[357676149,1744308646269,-151.0,0.00016438,2]
[357676150,1744308646279,-500.0,0.00016438,2]
[357676151,1744308646289,-151.0,0.00016438,2]
[357676152,1744308646304,-151.0,0.00016438,2]
[357676153,1744308646314,-151.0,0.00016438,2]
[357676154,1744308646324,-500.0,0.00016438,2]
[357676155,1744308646333,-512.64388149,0.00016438,2]
[357676156,1744308646343,-1137.36,0.00016438,2]
[357676157,1744308646353,-1351.72,0.00016438,2]
[357676158,1744308646363,-713.5,0.00016438,2]
[357676159,1744308646373,-500.0,0.00016438,2]
[357676160,1744308646383,-713.5,0.00016438,2]
[357676161,1744308646392,-500.0,0.00016438,2]
[357676162,1744308646402,-713.5,0.00016438,2]
[357676163,1744308646411,-300.0,0.00016438,2]
[357676164,1744308646421,-713.5,0.00016438,2]
[357676165,1744308646430,-713.5,0.00016438,2]
[357676166,1744308646439,-500.0,0.00016438,2]
[357676167,1744308646449,-713.5,0.00016438,2]
[357676168,1744308646459,-713.5,0.00016438,2]
[357676169,1744308646471,-713.5,0.00016438,2]
[357676170,1744308646481,-500.0,0.00016438,2]
[357676171,1744308646491,-713.5,0.00016438,2]
[357676173,1744308646501,-713.5,0.00016438,2]
[357676174,1744308646511,-500.0,0.00016438,2]
[357676175,1744308646521,-713.5,0.00016438,2]
[357676176,1744308646531,-713.5,0.00016438,2]
[357676177,1744308646540,-713.5,0.00016438,2]
[357676179,1744308646550,-713.5,0.00016438,2]
[357676182,1744308646560,-713.5,0.00016438,2]
[357676183,1744308646569,-713.5,0.00016438,2]
[357676184,1744308646579,-713.5,0.00016438,2]
[357676185,1744308646588,-713.5,0.00016438,2]
[357676186,1744308646598,-607.68,0.00016438,2]
[357676187,1744308646608,-713.5,0.00016438,2]
[357676188,1744308646617,-14000.4,0.00016438,2]
[357676189,1744308646627,-713.5,0.00016438,2]
[357676190,1744308646636,-713.5,0.00016438,2]
[357676191,1744308646646,-713.5,0.00016438,2]
[357676192,1744308646656,-323.323661,0.00016438,2]
[357676193,1744308646666,-713.5,0.00016438,2]
[357676194,1744308646675,-500.0,0.00016438,2]
[357676195,1744308646684,-323.323661,0.00016438,2]
[357676196,1744308646694,-713.5,0.00016438,2]
[357676197,1744308646704,-323.323661,0.00016438,2]
[357676198,1744308646714,-323.323661,0.00016438,2]
[357676199,1744308646726,-5103.21,0.00016438,2]
[357676200,1744308646735,-323.323661,0.00016438,2]
[357676201,1744308646745,-4408.74,0.00016438,2]
[357676202,1744308646755,-323.323661,0.00016438,2]
[357676203,1744308646765,-323.323661,0.00016438,2]
[357676204,1744308646775,-323.323661,0.00016438,2]
[357676205,1744308646784,-323.323661,0.00016438,2]
[357676206,1744308646794,-323.323653,0.00016438,2]
[357676207,1744308646805,-739.0,0.00016438,2]
[357676208,1744308646815,-500.0,0.00016438,2]
[357676209,1744308646824,-1487.33,0.00016438,2]
[357676210,1744308646834,-1856.267199,0.00016438,2]
[357676211,1744308646844,-1856.267199,0.00016438,2]
[357676212,1744308646854,-1856.267199,0.00016438,2]
[357676213,1744308646863,-1856.267199,0.00016438,2]
[357676214,1744308646873,-1856.267199,0.00016438,2]
[357676215,1744308646883,-500.0,0.00016438,2]
[357676216,1744308646892,-1856.267199,0.00016438,2]
[357676217,1744308646902,-1856.267199,0.00016438,2]
[357676218,1744308646911,-1856.26719022,0.00016438,2]
[357676219,1744308646923,-500.0,0.00016438,2]
[357676220,1744308646932,-500.0,0.00016438,2]
[357676221,1744308646942,-500.0,0.00016438,2]
[357676222,1744308646951,-1272.39,0.00016438,2]
[357676223,1744308646962,-4816.34,0.00016438,2]
[357676224,1744308646972,-1826.98,0.00016438,2]
[357676225,1744308646982,-8696.48,0.00016438,2]
[357676226,1744308646995,-500.0,0.00016438,2]
[357676227,1744308647005,-7073.33,0.00016438,2]
[357676228,1744308647015,-500.0,0.00016438,2]
[357676229,1744308647024,-500.0,0.00016438,2]
[357676230,1744308647034,-500.0,0.00016438,2]
[357676231,1744308647045,-500.0,0.00016438,2]
[357676232,1744308647056,-500.0,0.00016438,2]
[357676233,1744308647066,-500.0,0.00016438,2]
[357676234,1744308647077,-500.0,0.00016438,2]
[357676235,1744308647087,-500.0,0.00016438,2]
[357676236,1744308647097,-500.0,0.00016438,2]
[357676237,1744308647106,-500.0,0.00016438,2]
[357676238,1744308647116,-500.0,0.00016438,2]
[357676239,1744308647126,-500.0,0.00016438,2]
[357676240,1744308647135,-500.0,0.00016438,2]
[357676241,1744308647145,-500.0,0.00016438,2]
[357676242,1744308647154,-500.0,0.00016438,2]
[357676243,1744308647164,-500.0,0.00016438,2]
[357676244,1744308647174,-514.37397713,0.00016438,2]
[357676245,1744308647185,-500.0,0.00016438,2]
[357676246,1744308647195,-609.93,0.00016438,2]
[357676247,1744308647346,-500.0,0.00016438,2]
[357676248,1744308647357,-712.65,0.00016438,2]
[357676249,1744308647367,-500.0,0.00016438,2]
[357676250,1744308647377,-4914.16,0.00016438,2]
[357676251,1744308647387,-500.0,0.00016438,2]
[357676252,1744308647396,-500.0,0.00016438,2]
[357676253,1744308647406,-2368.57,0.00016438,2]
[357676254,1744308647415,-500.0,0.00016438,2]
[357676255,1744308647424,-854.96,0.00016438,2]